fUSD/lending_fUSD_20240925
["ID","MTS","AMOUNT","RATE_DAILY","PERIOD"]
[339088105,1727229045974,-500.0,0.00012899,2]
[339088106,1727229045983,-500.0,0.00012899,2]
[339088107,1727229045993,-248.14887654,0.00012899,2]
[339088108,1727229046003,-632.61973945,0.000129,2]
[339088113,1727229046185,-9318.32713459,0.000129,2]
[339088115,1727229046197,-49455.27848982,0.000129,2]
[339088117,1727229046208,-387.4826,0.000129,2]
[339088119,1727229046220,-369.04433645,0.000129,2]
[339088121,1727229046231,-19352.9757754,0.000129,2]
[339088123,1727229046242,-18698.1,0.000129,2]
[339088125,1727229046254,-1627.03868435,0.000129,2]
[339088127,1727229046266,-513.25296754,0.000129,2]
[339088128,1727229188918,309.05,0.0001,2]
[339088130,1727229227992,1628.26,0.00022,120]
[339088132,1727229384374,627.3521499,0.00022,120]
[339088147,1727229663541,155.72,0.00010959,2]
[339088148,1727229694201,1050.0,0.00011,2]
[339088151,1727229742590,325.94,9.689e-05,2]
[339088164,1727230060745,510.0,0.00021917,120]
[339088174,1727230194345,208.99626393,0.00011089,2]
[339088193,1727230232100,-201.80285421,0.00011188,2]
[339088195,1727230232110,-3307.18714579,0.00011189,2]
[339088197,1727230232121,-1903.99788146,0.00011189,2]
[339088199,1727230232132,-1064.88000004,0.00011189,2]
[339088202,1727230232143,-291.65,0.00011189,2]
[339088204,1727230232154,-2632.29352014,0.00011189,2]
[339088206,1727230232166,-5572.13745257,0.00011189,2]
[339088208,1727230232175,-2004.7317,0.00011289,2]
[339088209,1727230232184,-250.0,0.00011385,2]
[339088210,1727230232193,-200.0,0.00011388,2]
[339088211,1727230232202,-664.92,0.00011439,2]
[339088212,1727230232212,-250.0,0.00011448,2]
[339088213,1727230232221,-1000.0,0.00011454,2]
[339088214,1727230232231,-4580.28,0.00011474,2]
[339088215,1727230232240,-159.1580595,0.00011589,2]
[339088216,1727230232249,-153.92241314,0.00011589,2]
[339088217,1727230232260,-239.53,0.00011618,2]
[339088218,1727230232269,-525.98,0.00011634,2]
[339088219,1727230232278,-150.0,0.0001168,2]
[339088220,1727230232291,-251.7,0.00011902,2]
[339088221,1727230232301,-325.94,0.00011952,2]
[339088222,1727230232310,-150.0,0.00011999,2]
[339088223,1727230232319,-500.0,0.00012,2]
[339088224,1727230232329,-500.0,0.00012,2]
[339088225,1727230232339,-500.0,0.00012,2]
[339088226,1727230232349,-500.0,0.00012,2]
[339088227,1727230232359,-575.08,0.00012,2]
[339088228,1727230232369,-500.0,0.00012,2]
[339088229,1727230232378,-500.0,0.00012,2]
[339088230,1727230232388,-620.42,0.00012,2]
[339088231,1727230232397,-500.0,0.00012,2]
[339088232,1727230232408,-510.8948554,0.00012246,2]
[339088233,1727230232418,-163.68,0.00012327,2]
[339088234,1727230232427,-169.37,0.00012445,2]
[339088235,1727230232436,-167.98,0.00012445,2]
[339088236,1727230232446,-158.35,0.00012616,2]
[339088237,1727230232455,-1917.735,0.00012697,2]
[339088238,1727230232465,-808.0,0.00012697,2]
[339088239,1727230232474,-248.676,0.00012697,2]
[339088240,1727230232483,-3354.803,0.00012697,2]
[339088241,1727230232493,-7499.79333885,0.000127,2]
[339088242,1727230232505,-4083.88630759,0.000127,2]
[339088243,1727230232516,-29063.5,0.000127,2]
[339088244,1727230232532,-250.0,0.00011366,2]
[339088245,1727230232541,-544.97242246,0.000127,2]
[339088246,1727230232552,-2204.70442374,0.000127,2]
[339088247,1727230232580,-415.22091175,0.000127,2]
[339088248,1727230232591,-1603.49342349,0.000127,2]
[339088251,1727230238340,-920.27839316,0.000127,2]
[339088252,1727230238636,-22738.83573868,0.000127,2]
[339088254,1727230238646,-1147.0,0.00012706,2]
[339088256,1727230238657,-5868.0,0.00012706,2]
[339088258,1727230238668,-150.767,0.00012706,2]
[339088260,1727230238677,-13490.0,0.00012706,2]
[339088263,1727230238694,-955.8746,0.00012798,2]
[339088265,1727230238706,-1828.0556,0.00012799,2]
[339088267,1727230238716,-20221.0353,0.00012799,2]
[339088270,1727230238726,-159.83342849,0.000128,2]
[339088272,1727230238736,-38437.91181774,0.000128,2]
[339088294,1727230240083,-6053.36646385,0.000128,2]
[339088295,1727230240095,-626.98351347,0.000128,2]
[339088296,1727230240106,-1248.71,0.000128,2]
[339088298,1727230240117,-37769.00970494,0.000128,2]
[339088300,1727230240127,-180.91125827,0.000128,2]
[339088301,1727230240136,-180.91125827,0.000128,2]
[339088302,1727230240146,-180.91125827,0.000128,2]
[339088303,1727230240155,-181.41,0.000128,2]
[339088304,1727230240165,-262.01555556,0.000128,2]
[339088305,1727230240174,-262.01555556,0.000128,2]
[339088306,1727230240183,-262.01555556,0.000128,2]
[339088307,1727230240193,-262.01555556,0.000128,2]
[339088308,1727230240202,-262.01555556,0.000128,2]
[339088309,1727230240211,-262.01555556,0.000128,2]
[339088310,1727230240220,-262.01555556,0.000128,2]
[339088311,1727230240229,-262.01555556,0.000128,2]
[339088312,1727230240239,-262.01555556,0.000128,2]
[339088313,1727230240249,-262.01555556,0.000128,2]
[339088314,1727230240258,-262.01555556,0.000128,2]
[339088315,1727230240267,-262.01555556,0.000128,2]
[339088316,1727230240276,-262.01555556,0.000128,2]
[339088317,1727230240288,-262.01555556,0.000128,2]
[339088318,1727230240297,-262.01555556,0.000128,2]
[339088319,1727230240306,-262.01555556,0.000128,2]
[339088320,1727230240316,-262.01555556,0.000128,2]
[339088321,1727230240325,-262.01555556,0.000128,2]
[339088322,1727230240335,-262.01555556,0.000128,2]
[339088323,1727230240344,-262.51,0.000128,2]
[339088324,1727230240354,-257.36754484,0.000128,2]
[339088326,1727230240365,-257.36754484,0.000128,2]
[339088327,1727230240375,-257.36754484,0.000128,2]
[339088329,1727230240384,-257.36754484,0.000128,2]
[339088332,1727230240394,-257.36754484,0.000128,2]
[339088335,1727230240403,-257.36754484,0.000128,2]
[339088338,1727230240413,-257.36754484,0.000128,2]
[339088340,1727230240422,-257.36754484,0.000128,2]
[339088342,1727230240431,-235.77456023,0.000128,2]
[339088344,1727230240443,-21.59298461,0.000128,2]
[339088346,1727230240452,-257.36754484,0.000128,2]
[339088348,1727230240462,-257.36754484,0.000128,2]
[339088350,1727230240471,-257.36754484,0.000128,2]
[339088352,1727230240480,-257.36754484,0.000128,2]
[339088354,1727230240489,-257.36754484,0.000128,2]
[339088356,1727230240498,-257.36754484,0.000128,2]
[339088358,1727230240508,-257.36754484,0.000128,2]
[339088360,1727230240518,-257.36754484,0.000128,2]
[339088362,1727230240527,-257.36754484,0.000128,2]
[339088364,1727230240537,-257.36754484,0.000128,2]
[339088365,1727230240546,-257.86,0.000128,2]
[339088367,1727230240556,-150.0,0.00012824,2]
[339088369,1727230240565,-150.0,0.00012835,2]
[339088371,1727230240574,-150.0,0.00012855,2]
[339088373,1727230240584,-324.444,0.0001287,2]
[339088375,1727230240593,-150.0,0.00012872,2]
[339088377,1727230240603,-501.94129223,0.00012873,2]
[339088379,1727230240612,-205.05891761,0.00012885,2]
[339088394,1727230240801,-573.16626518,0.00012885,2]
[339088395,1727230240818,-221.77481721,0.00012885,2]
[339088396,1727230240827,-625.0,0.00012887,2]
[339088397,1727230240837,-1262.0,0.00012887,2]
[339088398,1727230240846,-448.0,0.00012887,2]
[339088399,1727230240855,-1549.0,0.00012887,2]
[339088400,1727230240864,-811.235,0.00012887,2]
[339088401,1727230240874,-559.384,0.00012887,2]
[339088402,1727230240883,-1907.916,0.00012887,2]
[339088403,1727230240894,-554.461,0.00012887,2]
[339088404,1727230240904,-173.95590554,0.00012898,2]
[339088405,1727230240914,-506.18304978,0.00012899,2]
[339088406,1727230240924,-500.0,0.00012899,2]
[339088407,1727230240933,-500.0,0.00012899,2]
[339088408,1727230240943,-500.0,0.00012899,2]
[339088409,1727230240952,-500.0,0.00012899,2]
[339088410,1727230240965,-280.46562569,0.00012899,2]
[339088411,1727230240976,-410.92972629,0.00012899,2]
[339088412,1727230240986,-501.13286896,0.00012899,2]
[339088413,1727230240995,-502.17122874,0.00012899,2]
[339088414,1727230241005,-502.52624912,0.00012899,2]
[339088415,1727230241014,-501.96034296,0.00012899,2]
[339088416,1727230241024,-501.13938535,0.00012899,2]
[339088417,1727230241033,-502.80592741,0.00012899,2]
[339088418,1727230241043,-505.09129839,0.00012899,2]
[339088419,1727230241052,-502.51971583,0.00012899,2]
[339088420,1727230241061,-504.27208482,0.00012899,2]
[339088421,1727230241071,-506.55757803,0.00012899,2]
[339088422,1727230241080,-231.19469197,0.00012899,2]
[339088423,1727230241089,-500.0,0.00012899,2]
[339088424,1727230241099,-434.67496533,0.00012899,2]
[339088425,1727230241108,-501.46202087,0.00012899,2]
[339088426,1727230241118,-501.09169496,0.00012899,2]
[339088427,1727230241127,-500.0,0.00012899,2]
[339088428,1727230241136,-287.12011708,0.00012899,2]
[339088429,1727230241146,-502.73712553,0.00012899,2]
[339088430,1727230241156,-613.72882951,0.00012899,2]
[339088431,1727230241167,-500.86424547,0.00012899,2]
[339088432,1727230241176,-545.6762993,0.00012899,2]
[339088433,1727230241185,-502.21111557,0.00012899,2]
[339088434,1727230241195,-502.24391136,0.00012899,2]
[339088435,1727230241204,-501.9568305,0.00012899,2]
[339088436,1727230241214,-500.0,0.00012899,2]
[339088437,1727230241223,-500.0,0.00012899,2]
[339088438,1727230241232,-394.90311148,0.00012899,2]
[339088439,1727230241242,-500.0,0.00012899,2]
[339088440,1727230241253,-500.0,0.00012899,2]
[339088441,1727230241264,-500.0,0.00012899,2]
[339088442,1727230241276,-417.36139206,0.00012899,2]
[339088443,1727230241288,-500.70184284,0.00012899,2]
[339088444,1727230241298,-501.70802213,0.00012899,2]
[339088445,1727230241308,-501.21580244,0.00012899,2]
[339088446,1727230241317,-501.07791025,0.00012899,2]
[339088447,1727230241328,-500.0,0.00012899,2]
[339088448,1727230241337,-501.28370423,0.00012899,2]
[339088449,1727230241347,-500.0,0.00012899,2]
[339088450,1727230241356,-500.0,0.00012899,2]
[339088451,1727230241367,-500.0,0.00012899,2]
[339088452,1727230241378,-544.67214612,0.00012899,2]
[339088453,1727230241389,-502.06155344,0.00012899,2]
[339088454,1727230241400,-501.97029504,0.00012899,2]
[339088455,1727230241410,-500.85158404,0.00012899,2]
[339088456,1727230241423,-501.95541515,0.00012899,2]
[339088457,1727230241432,-501.18571301,0.00012899,2]
[339088458,1727230241442,-501.85642511,0.00012899,2]
[339088459,1727230241451,-501.82896802,0.00012899,2]
[339088460,1727230241460,-500.0,0.00012899,2]
[339088461,1727230241470,-520.37495841,0.00012899,2]
[339088462,1727230241480,-501.98927895,0.00012899,2]
[339088463,1727230241489,-502.53330137,0.00012899,2]
[339088464,1727230241498,-648.1364177,0.00012899,2]
[339088465,1727230241508,-500.0,0.00012899,2]
[339088466,1727230241517,-500.0,0.00012899,2]
[339088467,1727230241527,-501.43263073,0.00012899,2]
[339088468,1727230241538,-393.91809293,0.00012899,2]
[339088469,1727230241547,-500.0,0.00012899,2]
[339088470,1727230241558,-500.0,0.00012899,2]
[339088471,1727230241568,-500.0,0.00012899,2]
[339088472,1727230241579,-500.0,0.00012899,2]
[339088473,1727230241588,-257.75971493,0.00012899,2]
[339088474,1727230241598,-500.78527006,0.00012899,2]
[339088475,1727230241609,-534.33776278,0.00012899,2]
[339088476,1727230241618,-320.87979462,0.00012899,2]
[339088477,1727230241627,-502.22637267,0.00012899,2]
[339088478,1727230241637,-501.13527965,0.00012899,2]
[339088479,1727230241647,-500.0,0.00012899,2]
[339088480,1727230241658,-501.54727206,0.00012899,2]
[339088481,1727230241668,-378.66153053,0.00012899,2]
[339088482,1727230241678,-572.51422834,0.00012899,2]
[339088483,1727230241687,-503.51445291,0.00012899,2]
[339088484,1727230241696,-448.84373338,0.00012899,2]
[339088485,1727230241706,-502.04875718,0.00012899,2]
[339088486,1727230241716,-508.44666061,0.00012899,2]
[339088487,1727230241726,-498.17353642,0.00012899,2]
[339088488,1727230241736,-500.0,0.00012899,2]
[339088489,1727230241746,-216.45284063,0.00012899,2]
[339088490,1727230241755,-501.90002104,0.00012899,2]
[339088491,1727230241765,-502.65354078,0.00012899,2]
[339088492,1727230241774,-500.0,0.00012899,2]
[339088493,1727230241784,-533.85988737,0.00012899,2]
[339088494,1727230241794,-505.82432166,0.00012899,2]
[339088495,1727230241803,-503.28402773,0.00012899,2]
[339088496,1727230241813,-504.18935506,0.00012899,2]
[339088497,1727230241822,-500.0,0.00012899,2]
[339088498,1727230241831,-206.33,0.00012899,2]
[339088499,1727230241841,-500.77094822,0.00012899,2]
[339088500,1727230241851,-505.87276412,0.00012899,2]
[339088501,1727230241861,-626.71516996,0.00012899,2]
[339088502,1727230241870,-535.48905577,0.00012899,2]
[339088503,1727230241880,-506.57675555,0.00012899,2]
[339088504,1727230241889,-500.42845708,0.00012899,2]
[339088505,1727230241899,-501.35445147,0.00012899,2]
[339088506,1727230241908,-500.0,0.00012899,2]
[339088507,1727230241920,-506.98129101,0.00012899,2]
[339088508,1727230241929,-503.71023077,0.00012899,2]
[339088509,1727230241939,-502.14745192,0.00012899,2]
[339088510,1727230241948,-506.18868758,0.00012899,2]
[339088511,1727230241958,-500.45869208,0.00012899,2]
[339088512,1727230241968,-503.13607759,0.00012899,2]
[339088513,1727230241977,-510.01823907,0.00012899,2]
[339088514,1727230241988,-500.0,0.00012899,2]
[339088515,1727230241998,-535.03769613,0.00012899,2]
[339088516,1727230242008,-173.43886203,0.00012899,2]
[339088517,1727230242018,-529.19573257,0.00012899,2]
[339088518,1727230242028,-502.92929793,0.00012899,2]
[339088519,1727230242039,-502.554134,0.00012899,2]
[339088520,1727230242052,-504.764235,0.00012899,2]
[339088521,1727230242061,-500.36239081,0.00012899,2]
[339088522,1727230242071,-507.41259982,0.00012899,2]
[339088523,1727230242081,-502.14932394,0.00012899,2]
[339088524,1727230242091,-500.0,0.00012899,2]
[339088525,1727230242101,-218.07590296,0.00012899,2]
[339088526,1727230242111,-501.42088623,0.00012899,2]
[339088527,1727230242121,-502.71329412,0.00012899,2]
[339088528,1727230242130,-538.79326633,0.00012899,2]
[339088529,1727230242140,-500.72329571,0.00012899,2]
[339088530,1727230242149,-503.06613244,0.00012899,2]
[339088531,1727230242158,-500.46693946,0.00012899,2]
[339088532,1727230242169,-507.71413279,0.00012899,2]
[339088533,1727230242397,-502.75491334,0.00012899,2]
[339088534,1727230242407,-500.73594341,0.00012899,2]
[339088535,1727230242418,-505.04951911,0.00012899,2]
[339088536,1727230242428,-506.72408626,0.00012899,2]
[339088537,1727230242438,-516.47888428,0.00012899,2]
[339088538,1727230242448,-465.21361523,0.00012899,2]
[339088539,1727230242459,-529.28803022,0.00012899,2]
[339088540,1727230242469,-523.345276,0.00012899,2]
[339088541,1727230242479,-531.52585449,0.00012899,2]
[339088542,1727230242488,-500.0,0.00012899,2]
[339088543,1727230242499,-500.0,0.00012899,2]
[339088544,1727230242508,-500.0,0.00012899,2]
[339088545,1727230242518,-500.0,0.00012899,2]
[339088546,1727230242527,-500.0,0.00012899,2]
[339088547,1727230242537,-500.0,0.00012899,2]
[339088548,1727230242546,-500.0,0.00012899,2]
[339088549,1727230242555,-346.4418208,0.00012899,2]
[339088550,1727230242564,-500.54217113,0.00012899,2]
[339088551,1727230242574,-500.0,0.00012899,2]
[339088552,1727230242583,-500.0,0.00012899,2]
[339088553,1727230242593,-500.0,0.00012899,2]
[339088554,1727230242603,-500.0,0.00012899,2]
[339088555,1727230242612,-500.0,0.00012899,2]
[339088556,1727230242621,-500.0,0.00012899,2]
[339088557,1727230242631,-500.0,0.00012899,2]
[339088558,1727230242640,-365.37396806,0.00012899,2]
[339088559,1727230242650,-520.6674643,0.00012899,2]
[339088560,1727230242660,-500.0,0.00012899,2]
[339088561,1727230242674,-500.0,0.00012899,2]
[339088562,1727230242684,-502.66289339,0.00012899,2]
[339088563,1727230242693,-500.0,0.00012899,2]
[339088564,1727230242702,-420.01670169,0.00012899,2]
[339088565,1727230242711,-603.27063556,0.00012899,2]
[339088566,1727230242720,-518.99549739,0.00012899,2]
[339088567,1727230242729,-502.6156187,0.00012899,2]
[339088568,1727230242739,-512.67756444,0.00012899,2]
[339088569,1727230242748,-503.05950905,0.00012899,2]
[339088570,1727230242757,-500.0,0.00012899,2]
[339088571,1727230242766,-500.0,0.00012899,2]
[339088572,1727230242776,-287.04977168,0.00012899,2]
[339088573,1727230242785,-500.0,0.00012899,2]
[339088574,1727230242795,-500.0,0.00012899,2]
[339088575,1727230242804,-253.26595937,0.00012899,2]
[339088576,1727230242813,-501.62855268,0.00012899,2]
[339088577,1727230242823,-500.0,0.00012899,2]
[339088578,1727230242832,-502.76478881,0.00012899,2]
[339088579,1727230242841,-500.75003881,0.00012899,2]
[339088580,1727230242850,-501.33751496,0.00012899,2]
[339088581,1727230242860,-500.5927697,0.00012899,2]
[339088582,1727230242869,-518.75573259,0.00012899,2]
[339088583,1727230242878,-569.092124,0.00012899,2]
[339088584,1727230242887,-647.05933419,0.00012899,2]
[339088585,1727230242897,-500.0,0.00012899,2]
[339088586,1727230242908,-420.12772172,0.00012899,2]
[339088587,1727230242923,-500.0,0.00012899,2]
[339088588,1727230242932,-500.0,0.00012899,2]
[339088589,1727230242942,-500.0,0.00012899,2]
[339088590,1727230242951,-500.0,0.00012899,2]
[339088591,1727230242960,-500.0,0.00012899,2]
[339088592,1727230242969,-226.51711096,0.00012899,2]
[339088593,1727230242978,-500.0,0.00012899,2]
[339088594,1727230242988,-500.0,0.00012899,2]
[339088595,1727230242997,-500.0,0.00012899,2]
[339088596,1727230243006,-500.0,0.00012899,2]
[339088597,1727230243016,-500.0,0.00012899,2]
[339088598,1727230243026,-500.0,0.00012899,2]
[339088599,1727230243035,-500.0,0.00012899,2]
[339088600,1727230243044,-500.0,0.00012899,2]
[339088601,1727230243054,-500.0,0.00012899,2]
[339088602,1727230243068,-528.28234837,0.00012899,2]
[339088603,1727230243077,-500.0,0.00012899,2]
[339088604,1727230243087,-500.0,0.00012899,2]
[339088605,1727230243096,-500.0,0.00012899,2]
[339088606,1727230243107,-178.39119523,0.00012899,2]
[339088607,1727230243116,-500.0,0.00012899,2]
[339088608,1727230243126,-507.11877852,0.00012899,2]
[339088609,1727230243136,-501.8234366,0.00012899,2]
[339088610,1727230243146,-500.0,0.00012899,2]
[339088611,1727230243156,-500.0,0.00012899,2]
[339088612,1727230243168,-500.0,0.00012899,2]
[339088613,1727230243177,-500.0,0.00012899,2]
[339088614,1727230243187,-500.0,0.00012899,2]
[339088615,1727230243196,-500.0,0.00012899,2]
[339088616,1727230243205,-500.0,0.00012899,2]
[339088617,1727230243214,-500.0,0.00012899,2]
[339088618,1727230243224,-500.0,0.00012899,2]
[339088619,1727230243233,-500.0,0.00012899,2]
[339088620,1727230243242,-500.0,0.00012899,2]
[339088621,1727230243252,-500.0,0.00012899,2]
[339088622,1727230243261,-500.0,0.00012899,2]
[339088623,1727230243270,-500.0,0.00012899,2]
[339088624,1727230243280,-500.0,0.00012899,2]
[339088625,1727230243293,-500.0,0.00012899,2]
[339088626,1727230243303,-500.0,0.00012899,2]
[339088627,1727230243313,-500.0,0.00012899,2]
[339088628,1727230243324,-500.0,0.00012899,2]
[339088629,1727230243335,-592.73,0.00012899,2]
[339088630,1727230243346,-518.94086173,0.00012899,2]
[339088631,1727230243356,-614.77268613,0.00012899,2]
[339088632,1727230243368,-578.76894974,0.00012899,2]
[339088633,1727230243377,-505.91030979,0.00012899,2]
[339088634,1727230243388,-522.67024449,0.00012899,2]
[339088635,1727230243397,-557.23479231,0.00012899,2]
[339088636,1727230243407,-551.57746912,0.00012899,2]
[339088637,1727230243417,-500.0,0.00012899,2]
[339088638,1727230243427,-500.0,0.00012899,2]
[339088639,1727230243436,-506.17416243,0.00012899,2]
[339088640,1727230243446,-520.64916933,0.00012899,2]
[339088641,1727230243456,-500.0,0.00012899,2]
[339088642,1727230243465,-402.17562038,0.00012899,2]
[339088643,1727230243475,-500.0,0.00012899,2]
[339088644,1727230243484,-313.59770954,0.00012899,2]
[339088645,1727230243493,-529.63211605,0.00012899,2]
[339088646,1727230243503,-500.0,0.00012899,2]
[339088647,1727230243512,-500.0,0.00012899,2]
[339088648,1727230243522,-606.81,0.00012899,2]
[339088649,1727230243533,-554.91266535,0.00012899,2]
[339088650,1727230243542,-516.70739182,0.00012899,2]
[339088651,1727230243552,-501.44663325,0.00012899,2]
[339088653,1727230243562,-500.0,0.00012899,2]
[339088654,1727230243572,-500.0,0.00012899,2]
[339088655,1727230243581,-500.0,0.00012899,2]
[339088656,1727230243590,-284.95,0.00012899,2]
[339088657,1727230243599,-334.60828567,0.00012899,2]
[339088658,1727230243609,-500.0,0.00012899,2]
[339088659,1727230243618,-276.1217603,0.00012899,2]
[339088660,1727230243627,-500.0,0.00012899,2]
[339088661,1727230243637,-404.90649041,0.00012899,2]
[339088662,1727230243646,-500.0,0.00012899,2]
[339088663,1727230243655,-500.0,0.00012899,2]
[339088664,1727230243665,-335.2664512,0.00012899,2]
[339088665,1727230243674,-500.0,0.00012899,2]
[339088666,1727230243683,-548.10265907,0.00012899,2]
[339088667,1727230243692,-556.7323538,0.00012899,2]
[339088668,1727230243702,-500.0,0.00012899,2]
[339088669,1727230243711,-542.34568301,0.00012899,2]
[339088670,1727230243720,-542.89859671,0.00012899,2]
[339088671,1727230243729,-517.56429635,0.00012899,2]
[339088672,1727230243738,-530.55224197,0.00012899,2]
[339088673,1727230243748,-501.18354574,0.00012899,2]
[339088674,1727230243757,-500.0,0.00012899,2]
[339088675,1727230243766,-500.0,0.00012899,2]
[339088676,1727230243775,-500.0,0.00012899,2]
[339088677,1727230243784,-500.0,0.00012899,2]
[339088678,1727230243793,-500.0,0.00012899,2]
[339088679,1727230243802,-500.0,0.00012899,2]
[339088680,1727230243811,-500.0,0.00012899,2]
[339088681,1727230243820,-500.0,0.00012899,2]
[339088682,1727230243830,-500.0,0.00012899,2]
[339088683,1727230243839,-500.0,0.00012899,2]
[339088684,1727230243848,-641.35,0.00012899,2]
[339088685,1727230243858,-163.92648735,0.00012899,2]
[339088686,1727230243866,-500.0,0.00012899,2]
[339088687,1727230243877,-219.38798442,0.00012899,2]
[339088688,1727230243888,-500.0,0.00012899,2]
[339088689,1727230243899,-500.0,0.00012899,2]
[339088690,1727230243908,-618.45897098,0.00012899,2]
[339088691,1727230243919,-560.53731021,0.00012899,2]
[339088692,1727230243928,-521.27754524,0.00012899,2]
[339088693,1727230243937,-500.0,0.00012899,2]
[339088694,1727230243948,-361.62331224,0.00012899,2]
[339088695,1727230243958,-501.16688644,0.00012899,2]
[339088696,1727230243968,-601.62280634,0.00012899,2]
[339088697,1727230243977,-532.55618176,0.00012899,2]
[339088698,1727230243987,-500.0,0.00012899,2]
[339088699,1727230243998,-500.0,0.00012899,2]
[339088700,1727230244008,-427.77112756,0.00012899,2]
[339088701,1727230244017,-500.0,0.00012899,2]
[339088702,1727230244029,-500.0,0.00012899,2]
[339088703,1727230244038,-500.0,0.00012899,2]
[339088704,1727230244049,-500.0,0.00012899,2]
[339088705,1727230244061,-500.0,0.00012899,2]
[339088706,1727230244071,-500.0,0.00012899,2]
[339088707,1727230244081,-390.11815108,0.00012899,2]
[339088708,1727230244090,-500.0,0.00012899,2]
[339088709,1727230244099,-319.82973146,0.00012899,2]
[339088710,1727230244108,-9188.20667726,0.000129,2]
[339088711,1727230244199,-500.0,0.00012899,2]
[339088712,1727230244209,-328.66193816,0.00012899,2]
[339088713,1727230244218,-12078.98319697,0.000129,2]
[339088714,1727230244229,-993.56644484,0.000129,2]
[339088715,1727230244240,-371.07060087,0.000129,2]
[339088716,1727230244251,-482.99999997,0.000129,2]
[339088717,1727230244262,-9225.0,0.000129,2]
[339088718,1727230244273,-2490.12971237,0.000129,2]
[339088719,1727230244285,-349.28737347,0.000129,2]
[339088720,1727230244297,-438.44803951,0.000129,2]
[339088721,1727230244309,-6921.36256087,0.000129,2]
[339088722,1727230244319,-2151.55353911,0.000129,2]
[339088732,1727230246054,-57078.82902036,0.000129,2]
[339088733,1727230246064,-520636.83485648,0.000129,2]
[339088734,1727230246075,-4737.96503898,0.000129,2]
[339088735,1727230246087,-1615.08851779,0.000129,2]
[339088736,1727230246183,-2202.63650834,0.000129,2]
[339088737,1727230246196,-1500.3449684,0.000129,2]
[339088738,1727230246207,-995.52655379,0.000129,2]
[339088739,1727230246218,-688.57407896,0.000129,2]
[339088740,1727230246230,-5102.84800258,0.000129,2]
[339088741,1727230246241,-3623.49088284,0.000129,2]
[339088742,1727230246308,-4038.52621349,0.000129,2]
[339088743,1727230246320,-3893.8786,0.000129,2]
[339088744,1727230246331,-12460.6,0.000129,2]
[339088745,1727230246343,-399.26215511,0.000129,2]
[339088746,1727230313939,9524.0932,0.00011088,2]
[339088747,1727230336727,3825.2244,0.00011089,2]
[339088748,1727230457978,324.15,9.998e-05,2]
[339088749,1727230601976,-420.4087,0.00011847,2]
[339088750,1727230601996,-300.0,0.00011874,2]
[339088751,1727230602018,-23900.0,0.00011875,2]
[339088752,1727230602039,-583.38,0.0001191,2]
[339088753,1727230602061,-150.0,0.0001191,2]
[339088754,1727230602083,-247.32,0.00011916,2]
[339088755,1727230602103,-500.0,0.00011946,2]
[339088756,1727230602123,-397.78,0.00011979,2]
[339088757,1727230602145,-324.15,0.00012262,2]
[339088758,1727230602164,-178.96,0.00012436,2]
[339088759,1727230602184,-2867.7375,0.000126,2]
[339088760,1727230602206,-1183.94586599,0.00012642,2]
[339088761,1727230602227,-222.0,0.00012698,2]
[339088762,1727230602246,-8421.4897,0.00012699,2]
[339088763,1727230602268,-150.0,0.00012699,2]
[339088764,1727230602288,-1000.0,0.000127,2]
[339088765,1727230602318,-945.56644578,0.000127,2]
[339088766,1727230602338,-5068.1881,0.000127,2]
[339088767,1727230602359,-806.5186,0.000127,2]
[339088768,1727230602380,-215.6493,0.000127,2]